Cogmind - Beta 16 @@@ ROGUE MODE // 2026.01.06 @ 08:25:31 Player: Oldman Pu Result: Destroyed by VK-16J(p) with EM Pulse Gun Performance ------------- Evolutions (0) 0 Regions Visited (3) 600 Robots Destroyed (25) 125 Value Destroyed (800) 800 Prototype IDs (8) 160 Alien Tech Used (0) 0 Bonus (800) 800 TOTAL SCORE: 2485 Bonus ------- Registered with UFD 300 Met Optimus in HQ 500 Cogmind --------- Core Integrity 0/250 Matter 268/300 Energy 240/240 System Corruption 2% Temperature Cool (54) Movement Rolling (140) Ox4 Location -7/Scraptown Parts ------- > --- POWER (1) -------- Nuclear Core > --- PROPULSION (2) --- Wheel Wheel > --- UTILITY (2) ------ Huge Storage Unit Light Armor Plating > --- WEAPON (2) ------- High-powered Shotgun Overtuned Barrage Gun > --- INVENTORY (25) --- Deuterium Engine Wheel Wheel Overtuned Scrapsphere Armored Huge Wheel Heat Sink Improved Heat Sink Large Storage Unit Light Armor Plating Hardened Heavy Armor Plating Gatling Laser Bolt Gun Minigun High-powered Shotgun Coil Gun Flak Cannon Slug Cannon Peak State ------------ > --- POWER ------------ Nuclear Core > --- PROPULSION ------- Wheel Overtuned Scrapsphere > --- UTILITY ---------- Huge Storage Unit Hardened Light Armor Plating > --- WEAPON ----------- High-powered Shotgun High-powered Shotgun > --- INVENTORY -------- Deuterium Engine Wheel Wheel Wheel Wheel Armored Huge Wheel Heat Sink Improved Heat Sink Large Storage Unit Light Armor Plating Light Armor Plating Hardened Heavy Armor Plating Gatling Laser Minigun Overtuned Barrage Gun Coil Gun Flak Cannon Slug Cannon [Rating: 21] Favorites ----------- Power Light Nuclear Core Engine Ion Engine Power Core Light Nuclear Core Propulsion Wheel Wheel Wheel Utility Large Storage Unit Device Heat Sink Storage Large Storage Unit Protection Light Armor Plating Weapon Assault Rifle Energy Gun Medium Laser Ballistic Gun Assault Rifle Build | -11 -10 -10 -7 ------- Run | Yrd Mat Sub Scr Slots Evolved . | . . . . Power . | . . . . Propulsion . | . . . . Utility . | . . . . Weapon . | . . . . Parts Attached 32 | 7 13 . 12 Power 6 | 2 3 . 1 Engine 4 | 2 2 . . Core 2 | . 1 . 1 Reactor . | . . . . Propulsion 10 | 2 5 . 3 Treads . | . . . . Leg . | . . . . Wheel 10 | 2 5 . 3 Hover . | . . . . Flight . | . . . . Utility 10 | 1 4 . 5 Device 2 | . 2 . . Storage 3 | 1 1 . 1 Processor . | . . . . Hackware . | . . . . Protection 5 | . 1 . 4 Artifact . | . . . . Weapon 6 | 2 1 . 3 Energy Gun 2 | 1 1 . . Energy Cannon . | . . . . Ballistic Gun 4 | 1 . . 3 Ballistic Cannon . | . . . . Launcher . | . . . . Special Weapon . | . . . . Impact Weapon . | . . . . Slashing Weapon . | . . . . Piercing Weapon . | . . . . Special Melee Weapon . | . . . . Unidentified Prototypes . | . . . . Parts Lost 3 | . 1 . 2 Power . | . . . . Propulsion 2 | . 1 . 1 Utility 1 | . . . 1 Weapon . | . . . . Highest Loss Streak 2 | . 1 . 2 To Critical Strikes . | . . . . Average Backups 13 | . 10 14 16 Power . | . 1 1 . Propulsion 5 | . 5 6 5 Utility 4 | . 2 5 5 Weapon 3 | . . 2 4 Tool/Special . | . . . . Unused Backups 16 | . 2 . 14 Power 2 | . 1 . 1 Propulsion 4 | . 1 . 3 Utility 3 | . . . 3 Weapon 7 | . . . 7 Tool/Special . | . . . . Average Slot Usage (%) 99 | . 98 100 99 Engine 3 | . 11 . . Core 10 | . 2 14 14 Wheel 27 | . 27 28 27 Device 3 | . 10 . . Storage 14 | . 15 14 14 Protection 10 | . 2 14 14 Energy Gun 9 | . 14 14 6 Ballistic Gun 18 | . 13 14 21 Peak Build Rating 21 | 6 10 11 21 Average Rating 12 | 4 8 10 15 On Entrance 6 | . 6 10 11 Avg Prop Armor Cover (%) 6 | . 6 . . Naked Turns . | . . . . Heaviest Build 98 | 13 33 32 98 Greatest Support 32 | 20 32 32 26 Greatest Overweight (x) 5 | 2 1 1 5 Average Overweight (x) 1 | . . . 2 Largest Inventory Capacity 25 | 8 15 15 25 Average Capacity 17 | 7 14 15 19 Most Carried 21 | 1 15 15 21 Average Carried 14 | . 10 14 17 Final Capacity 25 | 8 15 15 25 Final Carried 19 | 1 15 15 19 Class Distribution -------------------- 100% | Mutant Dominant Class ---------------- Mutant | -10/Materials Mutant | -10/Subcaves Mutant | -7/Scraptown Resources | -11 -10 -10 -7 ----------- Run | Yrd Mat Sub Scr Matter Collected 865 | 234 355 . 276 Remotely . | . . . . Salvage Created 1193 | . 607 . 586 Parts 64 | . 32 . 32 Haulers Intercepted 2 | . 2 . . Recyclers Shooed . | . . . . Parts Field Recycled . | . . . . Retrieved Matter . | . . . . Parts Self-Destructed . | . . . . Prevented . | . . . . Parts Restored . | . . . . Kills | -11 -10 -10 -7 ------- Run | Yrd Mat Sub Scr Combat Hostiles Destroyed 20 | . 11 . 9 Guns 20 | . 11 . 9 Classes Destroyed 8 | . 6 . 2 Worker 1 | . 1 . . Hauler 2 | . 2 . . Recycler 1 | . 1 . . Watcher 1 | . 1 . . Swarmer 3 | . 3 . . Grunt 8 | . 8 . . Guru 1 | . . . 1 Scrapper 8 | . . . 8 Best Kill Streak 6 | . 6 . 6 Combat Bots Only 6 | . 3 . 6 Max Kills in Single Turn 2 | . 2 . 1 Gunslinging . | . . . . Exploded . | . . . . Melee . | . . . . Uniques/NPCs Destroyed . | . . . . Combat | -11 -10 -10 -7 -------- Run | Yrd Mat Sub Scr Hostile Shots Fired 110 | . 61 2 47 Missed 25 | . 19 1 5 Hits 85 | . 42 1 42 Projectile 85 | . 42 1 42 Critical Strikes 5 | . 1 . 4 Damage Taken 1268 | . 526 26 716 Core 251 | . 125 . 126 Absorbed by Shields . | . . . . Regen/Repaired (Parts) 62 | . 62 . . Core Remaining (%) 100 | 100 . . . Volleys Fired 79 | . 58 . 21 Largest 2 | . 2 . 2 Hottest 70 | . 70 . 55 Shots Fired 158 | . 116 . 42 Gun 158 | . 116 . 42 Cannon . | . . . . Launcher . | . . . . Special . | . . . . Kinetic 100 | . 58 . 42 Thermal 58 | . 58 . . Explosive . | . . . . Electromagnetic . | . . . . Robot Hit Streak 10 | . 10 . 7 Robot Miss Streak 5 | . 5 . 3 Penetration Max . | . . . . Secondary Targets 1 | . 1 . . Max Gunslinging Chain 1 | . 1 . . Shots Hit Robots 102 | . 71 . 31 Core Hits 48 | . 32 . 16 Critical Kills . | . . . . Critical Parts Destroyed 2 | . 1 . 1 Critical Strikes 4 | . 3 . 1 Burn 2 | . 2 . . Destroy 2 | . 1 . 1 Melee Attacks . | . . . . Impact . | . . . . Slashing . | . . . . Piercing . | . . . . Sneak Attacks . | . . . . Combat Hostiles . | . . . . Follow-up Attacks . | . . . . Damage Inflicted 1497 | . 890 . 607 Guns 1497 | . 890 . 607 Cannons . | . . . . Explosions . | . . . . Melee . | . . . . Ramming . | . . . . Kinetic 1082 | . 475 . 607 Thermal 415 | . 415 . . Explosive . | . . . . Electromagnetic . | . . . . Impact . | . . . . Slashing . | . . . . Piercing . | . . . . Highest Corruption 2 | . . . 2 Average Corruption 1 | . . . 1 Corruption Purged . | . . . . Corruption Blocked . | . . . . Effects 1 | . . . 1 Message Errors 1 | . . . 1 Overload Shots . | . . . . Overflow Damage . | . . . . Projectiles . | . . . . Explosions . | . . . . Melee . | . . . . Knockbacks . | . . . . Impact . | . . . . Kinetic . | . . . . Secondary . | . . . . Self-Inflicted Damage . | . . . . Shots . | . . . . Rammed . | . . . . Targets Rammed . | . . . . Kicked . | . . . . Crushed . | . . . . Highest Temperature 313 | . 36 . 313 Average Temperature 102 | . 15 . 136 Received Heat Transfer 700 | . 288 . 412 Effects 3 | . . . 3 Energy Bleed 1 | . . . 1 Interference 2 | . . . 2 Siege Activations . | . . . . Martial Activations . | . . . . Shielding Activations . | . . . . Robots Disrupted . | . . . . Combat Hostiles . | . . . . Robots Corrupted . | . . . . Combat Hostiles . | . . . . Parts Fried . | . . . . Impact Corruptions . | . . . . Robots Melted . | . . . . Combat Hostiles . | . . . . Parts Melted 1 | . 1 . . Heat Transferred 1204 | . 1204 . . Parts Sabotaged . | . . . . Parts Stolen . | . . . . Parts Stripped . | . . . . Power Chain Reactions . | . . . . Alert | -11 -10 -10 -7 ------- Run | Yrd Mat Sub Scr Maximum Alert Level . | . . . . Low Security (%) 100 | 100 100 . . Level 1 . | . . . . Level 2 . | . . . . Level 3 . | . . . . Level 4 . | . . . . Level 5 . | . . . . High Security . | . . . . Max Security . | . . . . Peak Influence 113 | . 113 . . Initial . | . . . . Average 32 | . 34 . . Influence Increases 307 | . 307 . . Destroy 0b10 Robot/C 220 | . 220 . . Destroy 0b10 Robot/NC 25 | . 25 . . Destroy Leader 56 | . 56 . . Successful Hack 5 | . 5 . . Destroy Structure 1 | . 1 . . Influence Decreases 307 | . 260 47 . Entered New Map 23 | . . 23 . Time Decay 274 | . 250 24 . Lost Part 10 | . 10 . . Squads Dispatched 2 | . 2 . . Investigation 2 | . 2 . . Extermination . | . . . . Reinforcement . | . . . . Assault . | . . . . Garrison . | . . . . Intercept . | . . . . Searches Triggered . | . . . . Construction Impeded . | . . . . Haulers Reinforced . | . . . . Active Scanning Responses . | . . . . Cargo Convoy Interrupts . | . . . . Stealth | -11 -10 -10 -7 --------- Run | Yrd Mat Sub Scr Distress Signals 1 | . 1 . . Communications Jammed . | . . . . Distress Signals . | . . . . Times Spotted 43 | . 16 1 26 Peak Tracking Total 12 | . 3 1 12 Tactical Retreats 3 | . . . 3 Traps | -11 -10 -10 -7 ------- Run | Yrd Mat Sub Scr Traps Triggered 1 | . 1 . . Indirectly . | . . . . Trap Hack Attempts . | . . . . Triggered . | . . . . Disarmed . | . . . . Reprogrammed . | . . . . Reused . | . . . . Traps Extracted . | . . . . Installed . | . . . . Triggered . | . . . . Machines | -11 -10 -10 -7 ---------- Run | Yrd Mat Sub Scr Machines Disabled 1 | . . . 1 Max in Single Turn 1 | . . . 1 Machines Repaired . | . . . . Machines Dismantled . | . . . . Machines Sabotaged . | . . . . Overloaded Fab Kills . | . . . . Hacking | -11 -10 -10 -7 --------- Run | Yrd Mat Sub Scr Machines Accessed 11 | . 5 . 6 Terminals 4 | . 4 . . Fabricators . | . . . . Repair Stations 1 | . 1 . . Recycling Units . | . . . . Scanalyzers . | . . . . Garrison Access . | . . . . Total Hacks 47 | . 17 . 30 Successful 40 | . 10 . 30 Failed 7 | . 7 . . Catastrophic 3 | . 3 . . Database Lockouts . | . . . . Manual 1 | . . . 1 Terminals 15 | . 15 . . Fabricators . | . . . . Repair Stations 2 | . 2 . . Recycling Units . | . . . . Scanalyzers . | . . . . Garrison Access . | . . . . Terminal Hacks 38 | . 8 . 30 Record 25 | . 1 . 24 Robot Analysis 6 | . 1 . 5 Prototype ID Bank 1 | . 1 . . Open Door 1 | . . . 1 Locate Traps 2 | . 2 . . Maintenance Status 1 | . 1 . . Hauler Manifests 1 | . 1 . . Zone Layout 1 | . 1 . . Fabricator Hacks . | . . . . Repair Station Hacks 2 | . 2 . . Scan Component 1 | . 1 . . Repair 1 | . 1 . . Recycling Unit Hacks . | . . . . Scanalyzer . | . . . . Garrison Access Hacks . | . . . . Unauthorized Hacks . | . . . . Terminals . | . . . . Fabricators . | . . . . Repair Stations . | . . . . Recycling Units . | . . . . Scanalyzers . | . . . . Garrison Access . | . . . . Data Cores Recovered . | . . . . Used . | . . . . Hacking Detections 3 | . 3 . . Full Trace Events . | . . . . Feedback Events . | . . . . Feedback Blocked . | . . . . Robot Schematics Acquired . | . . . . Robots Built . | . . . . Authchips . | . . . . Time . | . . . . Total Robot Build Rating . | . . . . Part Schematics Acquired . | . . . . Parts Built . | . . . . Authchips . | . . . . Time . | . . . . Total Part Build Rating . | . . . . Part Studies Acquired . | . . . . Parts Repaired 1 | . 1 . . Time 26 | . 26 . . Parts Recycled . | . . . . Recycled Matter . | . . . . Retrieved Matter . | . . . . Retrieved Components . | . . . . Parts Scanalyzed . | . . . . Part Schematics Acquired . | . . . . Parts Damaged . | . . . . Bothacking | -11 -10 -10 -7 ------------ Run | Yrd Mat Sub Scr Used RIF Installer . | . . . . Robots Hacked . | . . . . Non-combat . | . . . . Combat . | . . . . Robot Hacks Applied . | . . . . Relay Couplers Released . | . . . . Fabnet Peak Effective % . | . . . . Robots Rewired . | . . . . Allies Hacked . | . . . . Hacks Repelled . | . . . . Allies | -11 -10 -10 -7 -------- Run | Yrd Mat Sub Scr Total Allies . | . . . . Largest Group . | . . . . Highest-Rated Group . | . . . . Highest-Rated Ally . | . . . . Total Orders . | . . . . Ally Attacks . | . . . . Total Damage . | . . . . Kills . | . . . . Allies Corrupted . | . . . . Allies Melted 9 | . . . 9 Intel | -11 -10 -10 -7 ------- Run | Yrd Mat Sub Scr Active Infowar (turns) . | . . . . Robot Analysis Total 6 | . 1 . 5 Derelict Logs Recovered . | . . . . Drone Launches . | . . . . Drone Recoveries . | . . . . Exploration | -11 -10 -10 -7 ------------- Run | Yrd Mat Sub Scr Turns Passed 2967 | 43 928 318 1678 Spaces Moved 2289 | 41 676 225 1347 Core 7 | 7 . . . Treads . | . . . . Legs . | . . . . Wheels 2282 | 34 676 225 1347 Hover . | . . . . Flight . | . . . . Fastest Speed 50 | 50 80 100 87 Average Speed 106 | 79 97 101 111 Slowest Speed 150 | 150 115 105 140 Overloaded Moves . | . . . . Propulsion Burnouts . | . . . . Robots Hopped . | . . . . Potential Cave-ins . | . . . . Cave-ins Triggered . | . . . . Exploration Rate (%) 51 | 3 92 24 85 Regions Visited 3 Branch Regions 2 Pre-discovered Areas . | . . . . Known Exits Taken . | . . . . Unknown Exits Taken 3 | 1 1 1 . Scrap Searched 4 | . . . 4 Spaces Dug . | . . . . Terrain Destroyed 1 | . . . 1 Melee . | . . . . Projectile 1 | . . . 1 AOE . | . . . . Terrain Rammed . | . . . . Walls Destroyed . | . . . . Machines Disabled . | . . . . Actions | -11 -10 -10 -7 --------- Run | Yrd Mat Sub Scr Total 2671 | 47 826 314 1484 Wait 216 | . 51 87 78 Move 2286 | 40 675 224 1347 Hop . | . . . . Pick Up 27 | . 16 1 10 Fast Attach 11 | 6 4 . 1 Attach 4 | . 2 . 2 Detach 1 | . 1 . . Swap 22 | 1 9 1 11 Drop 24 | . 10 1 13 Fire 79 | . 58 . 21 Melee . | . . . . Ram . | . . . . Kick . | . . . . Crush . | . . . . Escape Stasis . | . . . . Rewire 1 | . . . 1 Trap . | . . . . Miscellaneous . | . . . . Route ------- -11/Scrapyard -10/Materials (discovered 5 exits: [*Mat x3] / [*Min] / [*Sub]) -10/Subcaves (discovered 2 exits: [*Mat] / *Scr) -7/Scraptown History --------- Turn | Location | Event 8 | -11/Scrapyard | Discovered new exit (range 15) 44 | -11/Scrapyard | Entered Materials 45 | -10/Materials | Met a group of wandering Federalists 102 | -10/Materials | Discovered new exit (range 3) 269 | -10/Materials | Discovered new exit (range 13) 306 | -10/Materials | Build established: Mutant 435 | -10/Materials | Discovered new exit (range 7) 606 | -10/Materials | Repaired Assault Rifle 789 | -10/Materials | Discovered new exit (range 4) 882 | -10/Materials | Discovered new exit (range 13) 972 | -10/Materials | Entered Subcaves 973 | -10/Subcaves | Continued accompanying wandering Federalists (5) 1064 | -10/Subcaves | A swath of the cavern ceiling suddenly collapsed 1189 | -10/Subcaves | Shifting Twisted Machinery released Slug Cannon 1194 | -10/Subcaves | Discovered new exit (range 10) 1290 | -10/Subcaves | Entered Scraptown 1319 | -7/Scraptown | Heard Great Nut preacher, LISTEN AND RECITE! 1727 | -7/Scraptown | Visited Cave Peace 1759 | -7/Scraptown | Visited The Evicted 1922 | -7/Scraptown | Visited UFD Registry 1922 | -7/Scraptown | Registered with UFD as "Flexislicer" 1929 | -7/Scraptown | Visited TADAMA 1982 | -7/Scraptown | Visited Supply Room 2048 | -7/Scraptown | Visited Junk Repository 2077 | -7/Scraptown | Visited Scrapoid Research Area 2119 | -7/Scraptown | Visited Infowarlord's Domain 2139 | -7/Scraptown | Visited DA-N13 Charitable Foundation 2146 | -7/Scraptown | Found DCF Scrap (32 items) 2203 | -7/Scraptown | Visited Derelict Rescue Squad 2220 | -7/Scraptown | Visited Abandonware Association 2238 | -7/Scraptown | Learned abandonware demo "HACKBUD.EXE" 2532 | -7/Scraptown | Met Optimus 2532 | -7/Scraptown | Accepted into 0bPrime 2578 | -7/Scraptown | Visited Sword Containment 2621 | -7/Scraptown | Visited Analyses Database 2650 | -7/Scraptown | Civil war broke out across Scraptown 2731 | -7/Scraptown | Optimus destroyed in the chaos of civil war 2750 | -7/Scraptown | Core integrity fell below 50% 2760 | -7/Scraptown | Visited Scrap Suit Storage 2801 | -7/Scraptown | Lost 5 allies 2914 | -7/Scraptown | Core integrity fell below 20% 2968 | -7/Scraptown | Destroyed by VK-16J(p) with EM Pulse Gun Last Messages --------------- 02882_ Critical hit (Burn: +50). 02884_ EZ-35O(j) suffers critical hit (Destroy). 02884_ Destroyed Ovr. Titanium Leg. 02885_ Critical hit (Burn: +50). 02892_ Hrd. Light Armor Plating destroyed. 02894_ Critical hit (Burn: +50). 02894_ EZ-35O(j) destroyed. 02899_ Wheel destroyed. 02903_ D6-G0Z(j) destroyed. 02904_ Overheating: Energy bleed (-45). 02906_ JB-HC9(j) destroyed. 02909_ Overheating: System interference. 02909_ Hpw. Shotgun temporarily disabled. 02911_ UV-V11(j) destroyed. 02914_ MN-B1B(p) destroyed. 02918_ US-HUI(j) destroyed. 02918_ Machine disabled. 02939_ Acquired 70 matter. 02940_ Acquired 46 matter. 02962_ Destroyed EM Pulse Gun. Map ----- +----------------------------------------------------+ | ?????????????????????????????????????????????????? | | ?????????????????????????????????????????????????? | | ?????????????????????????????????????????????????? | | ?????????????????????????????????????????????????? | | ?????????????????????????????????????????????????? | | ?????????????????????????????????????????????????? | | ?????????????????????????????????????????????????? | | ?????????????????????????????????????????????????? | | ?????????????????????????????????????????????????? | | ?????????????????????????????????????????????????? | | ?????????????????????????????????????????????????? | | ?????????????????????????????????????????????????? | | ?????????????????????????????????????????????????? | | ?????????????????????????????????????????????????? | | ???????????????????????????????###########???????? | | ????????#######????????????????# #???????? | | ????????" !"#????????????????# #??###### | | ????????#" "#????????????????# / # #""""" | | ?????####X ##????????????????# # # " " | | ?????#" "#????##########??# # # | | ?????#"! !"#????#""""""""#??# # # "# | | ?????#"! !"#????#" X " ""#??##### ##### # "#X | | ?????#"! !"#????#" != ""#???#### X#### # "## | | ?????#"! !!!"#????#""=!!"""#???# ## # """ | | ?????## *==%##????# [[[!==!#???# ## # | | ?????# =*%[!#????# !%[ @!!#???# ## # | | ?????#######%##????#####p#####??#### ##### ## ### | | ???????#####/##########%j#%""#######=##### ## ##? | | ???????#""""%""""""""" "*!!""""" "!!"""" "" "## | | ???????# =!! %!=* !% **! % "## | | ???????#" [ =%! !!%*[!= "## | | ???????#" !!%% ! "## | | ???????#" % ! "## | | ????####" != ! | | ????"""" [%"" """"""""""""""""""" """ " "## | | ???#"""" !"""""""""""""""""""""""""""" "## | | ???#"""" ""###### ################"" "## | | ???#""" ""# ##????????#"" "## | | ???#""" ""# X"?????????#"" "## | | ##?#"""" ""# "" "" ##????????#"" "## | | "#"#"""" ""# "" "" X"#??????###"" "## | | """#"""" ""# " " ######### #"" "## | | "#######" "" "" != | | ##?????#[[* "" "" "## | | ########=%! ""# " " ######### #"" "## | | =%!*%!= ""# "" "" ""#??????###"" "## | | *=![! ""# "" "" ##????????#"" "## | | !%[ ""# X"?????????#"" "## | | ! ""# ##????????#"" "## | | ""###### ################"" "## | +----------------------------------------------------+ Best States ------------- Heat Dissipation 39 Energy Generation 14 Energy Capacity 250 Matter Stores 300 Matter Capacity 300 Sight Range 16 Terrain Scan Density 10 Armor Coverage 150 Evasion (%) 44 Item Schematics ----------------- None Robot Schematics ------------------ None Fabricated ------------ Nothing Repaired ---------- Assault Rifle | 38% | -10/Materials Studied --------- None Alien Tech Used ----------------- None Achievements -------------- Strength In Numbers Challenges ------------ None Game ------ Seed BombForceWings Manual? 0 Play Time 00:34:42 Cumulative 311.5 hours Start 2026.01.06 @ 07:50:26 End 2026.01.06 @ 08:25:31 Sessions 1 Manual Loads 0 Difficulty Rogue Special Mode None Game No. 273 Rogue 261 Adventurer 12 Explorer 0 Win Type - Total 1 Types 1/0/0/0/0/0/0/0/0/0 Lore% 36 Gallery% 44 Achievement% 25 Wizard Run 0 Options --------- Layout 1 ASCII 0 Keyboard 0 Movement Mouse Keybinds 0 Fullscreen 1 Font 32/SmallcapsGlow Map View 77x35 Zoom Use 0% Tactical HUD 1 Map Filters NONE Filters NONE Steam 1 RUN: d2947d36-9355-4f53-8faf-406efe66f665